[Event "Hungarian Youth-ch I 2024"]
[Site "Szolnok"]
[Date "2024.04.02"]
[Round "3.11"]
[White "Bod, Marton"]
[Black "Lehocz, Jozsef Jr."]
[Result "0-1"]
[ECO "B40"]
[WhiteElo "1870"]
[BlackElo "2143"]
[Annotator "RC"]
[PlyCount "116"]
[EventDate "2024.03.31"]
[EventType "swiss"]
[EventCountry "HUN"]
[SourceTitle "playchess.com"]
[Source "ChessBase"]
[SourceQuality "1"]
[TimeControl "5400+30"]

1. e4 {[%emt 0:00:06]} c5 {[%emt 0:00:40]} 2. Nf3 {[%emt 0:00:22]} e6 {[%emt 0:00:45]} 3. d4 {[%emt 0:00:28]} cxd4 {[%emt 0:00:06]} 4. Nxd4 {[%emt 0:00:08]} Nf6 {[%emt 0:01:14]} 5. Nc3 {[%emt 0:00:40]} Qb6 {[%emt 0:00:42]} 6. Nb3 {[%emt 0:03:53]} Bb4 {[%emt 0:01:01]} 7. Bd3 {[%emt 0:01:08]} Bxc3+ {[%emt 0:01:31]} 8. bxc3 {[%emt 0:00:32]} d6 {[%emt 0:00:39]} 9. O-O {[%emt 0:04:32]} Nbd7 {[%emt 0:01:34]} 10. Kh1 {[%emt 0:04:43]} O-O {[%emt 0:03:38]} 11. Ba3 {[%emt 0:01:49]} e5 {[%emt 0:03:02]} 12. Qd2 {[%emt 0:04:58]} Qc6 {[%emt 0:25:12]} 13. f3 {[%emt 0:02:39]} Nc5 {[%emt 0:01:02]} 14. Nxc5 {[%emt 0:01:09]} dxc5 {[%emt 0:00:09]} 15. Qg5 {[%emt 0:08:12]} Re8 {[%emt 0:01:44]} 16. Rab1 {[%emt 0:03:32]} c4 {[%emt 0:06:20]} 17. Be2 {[%emt 0:00:43]} h6 {[%emt 0:00:23]} 18. Qe3 {[%emt 0:01:41]} Be6 {[%emt 0:04:15]} 19. Qc5 {[%emt 0:02:01]} Qxc5 {[%emt 0:04:36]} 20. Bxc5 {[%emt 0:00:06]} b6 {[%emt 0:01:09]} 21. Bf2 {[%emt 0:03:43]} Red8 {[%emt 0:04:27]} 22. Rfd1 {[%emt 0:00:16]} Kf8 {[%emt 0:03:19]} 23. Kg1 {[%emt 0:05:39]} Ke7 {[%emt 0:01:16]} 24. a4 {[%emt 0:02:57]} Rxd1+ {[%emt 0:00:42]} 25. Rxd1 {[%emt 0:00:22]} Rd8 {[%emt 0:00:09]} 26. Rxd8 {[%emt 0:01:16]} Kxd8 {[%emt 0:00:06]} 27. Bg3 {[%emt 0:02:20]} Nd7 {[%emt 0:00:19]} 28. Kf1 {[%emt 0:02:25]} f6 {[%emt 0:01:29]} 29. Ke1 {[%emt 0:00:52]} Kc7 {[%emt 0:01:38]} 30. Bf2 {[%emt 0:01:15]} Kb7 {[%emt 0:06:06]} 31. a5 {[%emt 0:01:27]} bxa5 {[%emt 0:08:44]} 32. Kd1 {[%emt 0:01:15]} Nb6 {[%emt 0:06:26]} 33. Kc1 {[%emt 0:04:09]} Na4 {[%emt 0:00:27]} 34. Be1 {[%emt 0:00:20]} Kc6 {[%emt 0:00:57]} 35. Kb1 {[%emt 0:00:36]} Kb5 {[%emt 0:00:28]} 36. Ka2 {[%emt 0:01:21]} Nc5 {[%emt 0:02:57]} 37. Ka3 {[%emt 0:00:51]} f5 {[%emt 0:01:57]} 38. exf5 {[%emt 0:02:49]} Bxf5 {[%emt 0:00:10]} 39. Bg3 {[%emt 0:00:55]} e4 {[%emt 0:02:45]} 40. Be5 {[%emt 0:01:19]} g6 {[%emt 0:01:20]} 41. f4 {[%emt 0:09:03]} h5 {[%emt 0:02:54]} 42. h3 {[%emt 0:04:05]} h4 {[%emt 0:00:30]} 43. Bd4 {[%emt 0:02:25]} Ne6 {[%emt 0:00:28]} 44. Be3 {[%emt 0:00:08]} Nc7 {[%emt 0:00:26]} 45. Bd4 {[%emt 0:03:24]} Nd5 {[%emt 0:00:16]} 46. Bf1 {[%emt 0:02:48]} a6 {[%emt 0:00:27]} 47. Bf2 {[%emt 0:02:09]} Nxf4 {[%emt 0:00:06]} 48. g4 {[%emt 0:03:11]} Bc8 {[%emt 0:01:20]} 49. Bg1 {[%emt 0:01:29]} Be6 {[%emt 0:01:04]} 50. Bd4 {[%emt 0:00:42]} Bd5 {[%emt 0:01:18]} 51. g5 {[%emt 0:00:27]} Be6 {[%emt 0:00:14]} 52. Be3 {[%emt 0:00:22]} Bxh3 {[%emt 0:00:43]} 53. Bxh3 {[%emt 0:00:12]} Nxh3 {[%emt 0:00:03]} 54. Ka2 {[%emt 0:00:19]} Nxg5 {[%emt 0:00:18]} 55. Bxg5 {[%emt 0:00:06]} h3 {[%emt 0:00:07]} 56. Bf4 {[%emt 0:00:36]} g5 {[%emt 0:00:11]} 57. Bg3 {[%emt 0:00:30]} e3 {[%emt 0:00:15]} 58. Kb1 {[%emt 0:00:18]} e2 {[%emt 0:00:21]} 0-1

[Event "Hungarian Youth-ch I 2024"]
[Site "Szolnok"]
[Date "2024.04.02"]
[Round "3.12"]
[White "Jokai, Bence"]
[Black "Kovacs, Kristof"]
[Result "0-1"]
[ECO "C44"]
[WhiteElo "1750"]
[BlackElo "2000"]
[Annotator "RC"]
[PlyCount "100"]
[EventDate "2024.03.31"]
[EventType "swiss"]
[EventCountry "HUN"]
[SourceTitle "playchess.com"]
[Source "ChessBase"]
[SourceQuality "1"]
[TimeControl "5400+30"]

1. e4 {[%emt 0:00:03]} e5 {[%emt 0:00:10]} 2. Nf3 {[%emt 0:00:10]} Nc6 {[%emt 0:00:16]} 3. d4 {[%emt 0:00:08]} exd4 {[%emt 0:00:15]} 4. Nxd4 {[%emt 0:00:06]} Nf6 {[%emt 0:00:12]} 5. Nc3 {[%emt 0:00:08]} Bb4 {[%emt 0:00:27]} 6. Nxc6 {[%emt 0:00:06]} bxc6 {[%emt 0:00:22]} 7. Bd3 {[%emt 0:00:07]} d5 {[%emt 0:00:15]} 8. exd5 {[%emt 0:00:07]} cxd5 {[%emt 0:00:08]} 9. O-O {[%emt 0:00:14]} O-O {[%emt 0:00:14]} 10. h3 {[%emt 0:00:03]} c6 {[%emt 0:00:46]} 11. Qf3 {[%emt 0:00:10]} Be7 {[%emt 0:01:07]} 12. Bf4 {[%emt 0:00:23]} Be6 {[%emt 0:01:01]} 13. Rfe1 {[%emt 0:01:10]} c5 {[%emt 0:02:47]} 14. Nb5 {[%emt 0:07:25]} c4 {[%emt 0:06:05]} 15. Bf1 {[%emt 0:01:09]} Qb6 {[%emt 0:06:22]} 16. Nc7 {[%emt 0:04:42]} Rac8 {[%emt 0:00:16]} 17. Nxe6 {[%emt 0:00:00]} fxe6 {[%emt 0:00:11]} 18. Qe3 {[%emt 0:09:12]} Ne4 {[%emt 0:06:42]} 19. Qxb6 {[%emt 0:01:30]} axb6 {[%emt 0:00:08]} 20. Be3 {[%emt 0:01:19]} Rc6 {[%emt 0:06:10]} 21. Be2 {[%emt 0:04:28]} Bc5 {[%emt 0:09:32]} 22. Bxc5 {[%emt 0:04:45]} Nxc5 {[%emt 0:02:18]} 23. Bf3 {[%emt 0:04:17]} Rd6 {[%emt 0:00:33]} 24. Be2 {[%emt 0:09:03]} b5 {[%emt 0:00:47]} 25. b3 {[%emt 0:02:45]} Ra8 {[%emt 0:02:11]} 26. f3 {[%emt 0:07:41]} Ra3 {[%emt 0:01:37]} 27. Red1 {[%emt 0:01:49]} Rda6 {[%emt 0:00:40]} 28. bxc4 {[%emt 0:04:29]} bxc4 {[%emt 0:00:13]} 29. Rab1 {[%emt 0:03:17]} Rxa2 {[%emt 0:00:23]} 30. Rb8+ {[%emt 0:00:38]} Kf7 {[%emt 0:00:07]} 31. Rd4 {[%emt 0:02:06]} Rxc2 {[%emt 0:01:05]} 32. Bd1 {[%emt 0:01:04]} Rc1 {[%emt 0:00:22]} 33. Kh2 {[%emt 0:00:09]} Nd7 {[%emt 0:01:16]} 34. Rb7 {[%emt 0:00:20]} Ke7 {[%emt 0:00:15]} 35. f4 {[%emt 0:00:30]} g6 {[%emt 0:01:03]} 36. Be2 {[%emt 0:01:08]} Rc6 {[%emt 0:01:19]} 37. Bg4 {[%emt 0:01:04]} h5 {[%emt 0:00:13]} 38. Bd1 {[%emt 0:02:07]} Ra1 {[%emt 0:00:19]} 39. Be2 {[%emt 0:00:45]} Ra2 {[%emt 0:00:16]} 40. Bf1 {[%emt 0:00:19]} Ra5 {[%emt 0:00:39]} 41. Rd1 {[%emt 0:00:54]} Rac5 {[%emt 0:00:24]} 42. g4 {[%emt 0:00:32]} h4 {[%emt 0:00:22]} 43. f5 {[%emt 0:00:06]} gxf5 {[%emt 0:00:09]} 44. gxf5 {[%emt 0:00:12]} exf5 {[%emt 0:00:19]} 45. Bg2 {[%emt 0:00:11]} Kd6 {[%emt 0:00:19]} 46. Bxd5 {[%emt 0:03:10]} Rxd5 {[%emt 0:00:12]} 47. Rxd7+ {[%emt 0:00:07]} Kxd7 {[%emt 0:00:08]} 48. Rxd5+ {[%emt 0:00:05]} Ke6 {[%emt 0:00:12]} 49. Rd2 {[%emt 0:00:03]} c3 {[%emt 0:00:02]} 50. Rc2 {[%emt 0:00:05]} Kd5 {[%emt 0:00:06]} 0-1

[Event "Hungarian Youth-ch I 2024"]
[Site "Szolnok"]
[Date "2024.04.02"]
[Round "3.13"]
[White "Sinoros-Szabo, Daniel"]
[Black "Toth, Rafael"]
[Result "1-0"]
[ECO "B48"]
[WhiteElo "1971"]
[BlackElo "1843"]
[Annotator "RC"]
[PlyCount "43"]
[EventDate "2024.03.31"]
[EventType "swiss"]
[EventCountry "HUN"]
[SourceTitle "playchess.com"]
[Source "ChessBase"]
[SourceQuality "1"]
[TimeControl "5400+30"]

1. e4 {[%emt 0:00:09]} c5 {[%emt 0:00:06]} 2. Nf3 {[%emt 0:00:07]} e6 {[%emt 0:00:08]} 3. d4 {[%emt 0:00:05]} cxd4 {[%emt 0:00:06]} 4. Nxd4 {[%emt 0:00:06]} Nc6 {[%emt 0:00:06]} 5. Nc3 {[%emt 0:00:22]} Qc7 {[%emt 0:00:07]} 6. Be3 {[%emt 0:00:52]} a6 {[%emt 0:00:13]} 7. a3 {[%emt 0:00:13]} Nf6 {[%emt 0:00:08]} 8. f4 {[%emt 0:01:13]} d6 {[%emt 0:04:28]} 9. Qe2 {[%emt 0:01:14]} Be7 {[%emt 0:01:05]} 10. O-O-O {[%emt 0:01:04]} b5 {[%emt 0:02:36]} 11. Nxc6 {[%emt 0:01:11]} Qxc6 {[%emt 0:00:17]} 12. g4 {[%emt 0:00:17]} Bb7 {[%emt 0:01:11]} 13. Bg2 {[%emt 0:00:53]} O-O-O {[%emt 0:07:19]} 14. g5 {[%emt 0:06:17]} Nd7 {[%emt 0:02:38]} 15. Bd4 {[%emt 0:09:06]} Rhg8 {[%emt 0:06:48]} 16. Qh5 {[%emt 0:12:21]} f6 {[%emt 0:04:56]} 17. Qf7 {[%emt 0:10:06]} Rde8 {[%emt 0:04:31]} 18. Bh3 {[%emt 0:06:38]} fxg5 {[%emt 0:04:40]} 19. Bxe6 {[%emt 0:03:59]} Bf6 {[%emt 0:07:08]} 20. Bxf6 {[%emt 0:05:54]} gxf6 {[%emt 0:00:32]} 21. Nd5 {[%emt 0:02:26]} Rgf8 {[%emt 0:02:42]} 22. Bxd7+ {[%emt 0:01:16]} 1-0

[Event "Hungarian Youth-ch I 2024"]
[Site "Szolnok"]
[Date "2024.04.02"]
[Round "3.14"]
[White "Feher, Botond"]
[Black "Horvath, Matyas Sandor"]
[Result "1-0"]
[ECO "B21"]
[WhiteElo "2018"]
[BlackElo "1729"]
[Annotator "RC"]
[PlyCount "79"]
[EventDate "2024.03.31"]
[EventType "swiss"]
[EventCountry "HUN"]
[SourceTitle "playchess.com"]
[Source "ChessBase"]
[SourceQuality "1"]
[TimeControl "5400+30"]

1. e4 {[%emt 0:00:10]} c5 {[%emt 0:00:11]} 2. d4 {[%emt 0:00:45]} cxd4 {[%emt 0:00:16]} 3. c3 {[%emt 0:00:08]} dxc3 {[%emt 0:00:28]} 4. Nxc3 {[%emt 0:00:23]} Nc6 {[%emt 0:00:16]} 5. Nf3 {[%emt 0:00:06]} e6 {[%emt 0:00:52]} 6. Bc4 {[%emt 0:00:13]} a6 {[%emt 0:01:27]} 7. O-O {[%emt 0:00:12]} Nge7 {[%emt 0:00:46]} 8. Bg5 {[%emt 0:00:55]} f6 {[%emt 0:00:48]} 9. Be3 {[%emt 0:02:06]} Ng6 {[%emt 0:01:42]} 10. Bb3 {[%emt 0:06:29]} Be7 {[%emt 0:03:17]} 11. Na4 {[%emt 0:00:36]} b5 {[%emt 0:01:24]} 12. Bb6 {[%emt 0:01:34]} bxa4 {[%emt 0:03:57]} 13. Bxd8 {[%emt 0:01:26]} Nxd8 {[%emt 0:05:51]} 14. Bxa4 {[%emt 0:00:51]} Nc6 {[%emt 0:03:17]} 15. Rc1 {[%emt 0:01:11]} Bb7 {[%emt 0:00:57]} 16. Qb3 {[%emt 0:00:50]} Na5 {[%emt 0:13:42]} 17. Qb6 {[%emt 0:03:32]} Bd8 {[%emt 0:01:31]} 18. Qxe6+ {[%emt 0:00:09]} Kf8 {[%emt 0:01:01]} 19. Bxd7 {[%emt 0:00:13]} Be7 {[%emt 0:06:28]} 20. Qb6 {[%emt 0:02:01]} Bd8 {[%emt 0:05:01]} 21. Qc5+ {[%emt 0:00:07]} Ne7 {[%emt 0:06:20]} 22. Nd4 {[%emt 0:01:15]} h5 {[%emt 0:04:15]} 23. b4 {[%emt 0:00:22]} Nac6 {[%emt 0:00:19]} 24. Nxc6 {[%emt 0:00:26]} Bxc6 {[%emt 0:00:09]} 25. Bxc6 {[%emt 0:00:05]} Rc8 {[%emt 0:00:07]} 26. Qd6 {[%emt 0:00:45]} Bc7 {[%emt 0:00:27]} 27. Qd7 {[%emt 0:00:18]} Be5 {[%emt 0:00:38]} 28. Rfd1 {[%emt 0:00:26]} Kf7 {[%emt 0:00:30]} 29. Bd5+ {[%emt 0:00:07]} Kg6 {[%emt 0:00:25]} 30. Qxe7 {[%emt 0:00:16]} Rxc1 {[%emt 0:00:16]} 31. Rxc1 {[%emt 0:00:09]} Rb8 {[%emt 0:00:13]} 32. Qf7+ {[%emt 0:00:28]} Kh6 {[%emt 0:00:13]} 33. a3 {[%emt 0:00:13]} Bf4 {[%emt 0:00:22]} 34. Rc3 {[%emt 0:00:28]} Rb6 {[%emt 0:00:22]} 35. h4 {[%emt 0:00:34]} a5 {[%emt 0:00:27]} 36. Rf3 {[%emt 0:00:32]} Be5 {[%emt 0:00:07]} 37. Rf5 {[%emt 0:00:10]} g6 {[%emt 0:00:15]} 38. Qf8+ {[%emt 0:00:07]} Kh7 {[%emt 0:00:10]} 39. Qg8+ {[%emt 0:00:07]} Kh6 {[%emt 0:00:12]} 40. Qh8# {[%emt 0:00:05]} 1-0

[Event "Hungarian Youth-ch I 2024"]
[Site "Szolnok"]
[Date "2024.04.02"]
[Round "3.15"]
[White "Papai, Mate"]
[Black "Morovan-Szabo, Lorinc"]
[Result "1-0"]
[ECO "E92"]
[WhiteElo "1887"]
[BlackElo "1822"]
[Annotator "NA RC"]
[PlyCount "95"]
[EventDate "2024.03.31"]
[EventType "swiss"]
[EventCountry "HUN"]
[SourceTitle "playchess.com"]
[Source "ChessBase"]
[SourceQuality "1"]
[TimeControl "5400+30"]

1. d4 {[%emt 0:00:05]} Nf6 {[%emt 0:00:09]} 2. c4 {[%emt 0:00:20]} g6 {[%emt 0:00:12]} 3. Nc3 {[%emt 0:00:11]} Bg7 {[%emt 0:00:20]} 4. e4 {[%emt 0:00:19]} d6 {[%emt 0:00:12]} 5. Be2 {[%emt 0:00:14]} O-O {[%emt 0:00:27]} 6. Be3 {[%emt 0:00:53]} e5 {[%emt 0:00:33]} 7. Nf3 {[%emt 0:00:59]} Nc6 {[%emt 0:00:35]} 8. d5 {[%emt 0:01:17]} Ne7 {[%emt 0:00:13]} 9. Nd2 {[%emt 0:00:38]} Nd7 {[%emt 0:00:46]} 10. b4 {[%emt 0:01:58]} f5 {[%emt 0:00:29]} 11. f3 {[%emt 0:00:15]} f4 {[%emt 0:01:16]} 12. Bf2 {[%emt 0:00:19]} g5 {[%emt 0:00:20]} 13. c5 {[%emt 0:00:41]} Nf6 {[%emt 0:00:29]} 14. Nc4 {[%emt 0:01:24]} a6 {[%emt 0:02:13]} 15. Qb3 $18 {[%emt 0:07:12]} Kh8 {[%emt 0:03:35]} 16. Rc1 {[%emt 0:02:01]} g4 {[%emt 0:01:30]} 17. a4 {[%emt 0:11:35]} Rb8 {[%emt 0:04:35]} 18. cxd6 {[%emt 0:01:24]} cxd6 {[%emt 0:00:17]} 19. Bb6 {[%emt 0:00:07]} Qd7 {[%emt 0:00:59]} 20. Ba7 {[%emt 0:03:17]} b5 {[%emt 0:01:26]} 21. Bxb8 {[%emt 0:00:18]} bxc4 {[%emt 0:00:07]} 22. Qxc4 {[%emt 0:00:41]} Ne8 {[%emt 0:04:03]} 23. Nd1 {[%emt 0:09:52]} Qb7 {[%emt 0:05:18]} 24. Bc7 {[%emt 0:01:10]} gxf3 {[%emt 0:01:08]} 25. gxf3 {[%emt 0:01:45]} Nxc7 {[%emt 0:00:45]} 26. Qxc7 {[%emt 0:00:14]} Qxb4+ {[%emt 0:00:12]} 27. Qc3 {[%emt 0:04:22]} Qxa4 {[%emt 0:00:33]} 28. Nb2 {[%emt 0:00:40]} Qe8 {[%emt 0:07:50]} 29. Qc7 {[%emt 0:02:05]} Bf6 {[%emt 0:10:19]} 30. Qxd6 {[%emt 0:02:56]} Bh4+ {[%emt 0:00:07]} 31. Kd2 {[%emt 0:00:21]} Ng6 {[%emt 0:00:10]} 32. Bxa6 {[%emt 0:01:50]} Be7 {[%emt 0:01:31]} 33. Qb6 {[%emt 0:01:49]} Bxa6 {[%emt 0:02:52]} 34. Qxa6 {[%emt 0:00:13]} Qb8 {[%emt 0:00:13]} 35. Nd3 {[%emt 0:01:35]} Nh4 {[%emt 0:00:28]} 36. Ke2 {[%emt 0:01:36]} Qb3 {[%emt 0:02:17]} 37. Qa7 {[%emt 0:04:54]} Nxf3 {[%emt 0:01:09]} 38. Qxe7 {[%emt 0:02:00]} Nd4+ {[%emt 0:00:09]} 39. Ke1 {[%emt 0:00:13]} Nf3+ {[%emt 0:03:23]} 40. Kf2 {[%emt 0:00:16]} Qb6+ {[%emt 0:01:06]} 41. Qc5 {[%emt 0:00:18]} Qh6 {[%emt 0:00:35]} 42. Kxf3 {[%emt 0:01:08]} Qh3+ {[%emt 0:00:54]} 43. Ke2 {[%emt 0:04:38]} Qg2+ {[%emt 0:01:49]} 44. Nf2 {[%emt 0:00:36]} f3+ {[%emt 0:00:09]} 45. Kd2 {[%emt 0:00:25]} Qg5+ {[%emt 0:00:10]} 46. Kd3 {[%emt 0:01:10]} Rb8 {[%emt 0:00:57]} 47. Rhg1 {[%emt 0:01:20]} Rb3+ {[%emt 0:00:43]} 48. Kc4 {[%emt 0:00:52]} 1-0

[Event "Hungarian Youth-ch I 2024"]
[Site "Szolnok"]
[Date "2024.04.02"]
[Round "3.16"]
[White "Minga-Nagy, Abel Inti"]
[Black "Meszaros-Csonka, David"]
[Result "1/2-1/2"]
[ECO "B40"]
[WhiteElo "1929"]
[BlackElo "1941"]
[Annotator "RC"]
[PlyCount "42"]
[EventDate "2024.03.31"]
[EventType "swiss"]
[EventCountry "HUN"]
[SourceTitle "playchess.com"]
[Source "ChessBase"]
[SourceQuality "1"]
[TimeControl "5400+30"]

1. e4 {[%emt 0:00:03]} c5 {[%emt 0:01:07]} 2. Nf3 {[%emt 0:00:11]} e6 {[%emt 0:00:10]} 3. d4 {[%emt 0:00:08]} cxd4 {[%emt 0:00:04]} 4. Nxd4 {[%emt 0:00:08]} Nf6 {[%emt 0:00:06]} 5. Nc3 {[%emt 0:00:05]} Nc6 {[%emt 0:00:04]} 6. Nxc6 {[%emt 0:00:06]} bxc6 {[%emt 0:00:04]} 7. e5 {[%emt 0:00:08]} Nd5 {[%emt 0:00:03]} 8. Ne4 {[%emt 0:00:07]} Qc7 {[%emt 0:00:03]} 9. f4 {[%emt 0:00:05]} Qb6 {[%emt 0:00:03]} 10. Bd3 {[%emt 0:00:18]} Bc5 {[%emt 0:24:38]} 11. Qg4 {[%emt 0:06:37]} g6 {[%emt 0:16:30]} 12. Qf3 {[%emt 0:12:55]} Ba6 {[%emt 0:09:54]} 13. Nxc5 {[%emt 0:04:05]} Qxc5 {[%emt 0:00:21]} 14. Bxa6 {[%emt 0:00:12]} Qa5+ {[%emt 0:00:01]} 15. Bd2 {[%emt 0:00:16]} Qxa6 {[%emt 0:02:05]} 16. b3 {[%emt 0:08:29]} Qb6 {[%emt 0:06:27]} 17. Qf2 {[%emt 0:00:51]} c5 {[%emt 0:10:47]} 18. O-O {[%emt 0:02:10]} O-O {[%emt 0:03:20]} 19. c4 {[%emt 0:00:31]} Nb4 {[%emt 0:01:36]} 20. Qh4 {[%emt 0:03:08]} Nc2 {[%emt 0:07:12]} 21. Rad1 {[%emt 0:01:32]} Nd4 1/2-1/2

[Event "Hungarian Youth-ch I 2024"]
[Site "Szolnok"]
[Date "2024.04.02"]
[Round "3.17"]
[White "Hangay, Oliver"]
[Black "Kiss, Mate Botond"]
[Result "1-0"]
[ECO "C72"]
[WhiteElo "1962"]
[BlackElo "1645"]
[Annotator "RC"]
[PlyCount "105"]
[EventDate "2024.03.31"]
[EventType "swiss"]
[EventCountry "HUN"]
[SourceTitle "playchess.com"]
[Source "ChessBase"]
[SourceQuality "1"]
[TimeControl "5400+30"]

1. e4 {[%emt 0:00:12]} e5 {[%emt 0:00:03]} 2. Nf3 {[%emt 0:00:03]} Nc6 {[%emt 0:00:11]} 3. Bb5 {[%emt 0:00:01]} a6 {[%emt 0:00:17]} 4. Ba4 {[%emt 0:00:04]} d6 {[%emt 0:00:10]} 5. O-O {[%emt 0:00:34]} Bg4 {[%emt 0:00:11]} 6. h3 {[%emt 0:00:06]} h5 {[%emt 0:17:10]} 7. d4 {[%emt 0:02:06]} Bxf3 {[%emt 0:00:54]} 8. Bxc6+ {[%emt 0:01:22]} bxc6 {[%emt 0:00:11]} 9. Qxf3 {[%emt 0:00:13]} exd4 {[%emt 0:01:45]} 10. c3 {[%emt 0:03:51]} c5 {[%emt 0:00:19]} 11. Rd1 {[%emt 0:04:57]} Qf6 {[%emt 0:02:39]} 12. Qxf6 {[%emt 0:09:55]} Nxf6 {[%emt 0:00:06]} 13. cxd4 {[%emt 0:00:19]} cxd4 {[%emt 0:00:10]} 14. Rxd4 {[%emt 0:00:09]} Be7 {[%emt 0:00:35]} 15. Nc3 {[%emt 0:01:07]} O-O {[%emt 0:00:40]} 16. b3 {[%emt 0:09:35]} c5 {[%emt 0:00:53]} 17. Rd1 {[%emt 0:00:30]} Rfe8 {[%emt 0:01:29]} 18. f3 {[%emt 0:00:38]} Rab8 {[%emt 0:00:21]} 19. Bf4 {[%emt 0:00:41]} Rbd8 {[%emt 0:00:29]} 20. Rd3 {[%emt 0:00:48]} Rd7 {[%emt 0:01:35]} 21. Rad1 {[%emt 0:00:53]} Red8 {[%emt 0:00:17]} 22. g4 {[%emt 0:06:17]} hxg4 {[%emt 0:00:29]} 23. hxg4 {[%emt 0:00:23]} Ne8 {[%emt 0:08:25]} 24. Nd5 {[%emt 0:02:48]} Bf8 {[%emt 0:00:43]} 25. Nb6 {[%emt 0:01:26]} Rb7 {[%emt 0:00:43]} 26. Nc4 {[%emt 0:00:24]} Rbd7 {[%emt 0:00:36]} 27. e5 {[%emt 0:01:06]} d5 {[%emt 0:02:25]} 28. Nb6 {[%emt 0:00:28]} Rb7 {[%emt 0:00:07]} 29. Nxd5 {[%emt 0:00:09]} Rbd7 {[%emt 0:00:07]} 30. Ne7+ {[%emt 0:00:31]} Rxe7 {[%emt 0:01:06]} 31. Rxd8 {[%emt 0:00:30]} Nc7 {[%emt 0:01:38]} 32. R8d7 {[%emt 0:00:15]} Rxd7 {[%emt 0:00:16]} 33. Rxd7 {[%emt 0:00:01]} Ne6 {[%emt 0:00:13]} 34. Be3 {[%emt 0:00:07]} g6 {[%emt 0:00:35]} 35. Rd5 {[%emt 0:00:54]} Kg7 {[%emt 0:00:39]} 36. f4 {[%emt 0:00:25]} Nc7 {[%emt 0:00:59]} 37. Rd1 {[%emt 0:01:08]} Nb5 {[%emt 0:00:24]} 38. Rc1 {[%emt 0:00:25]} Nd4 {[%emt 0:00:24]} 39. Bxd4 {[%emt 0:00:02]} cxd4 {[%emt 0:00:15]} 40. Kf2 {[%emt 0:00:14]} Bb4 {[%emt 0:01:00]} 41. Ke2 {[%emt 0:00:08]} Bc3 {[%emt 0:00:13]} 42. Kd3 {[%emt 0:00:04]} f6 {[%emt 0:00:14]} 43. exf6+ {[%emt 0:00:40]} Kxf6 {[%emt 0:00:15]} 44. Rxc3 {[%emt 0:00:02]} dxc3 {[%emt 0:00:17]} 45. b4 {[%emt 0:00:01]} Ke6 {[%emt 0:00:27]} 46. Kxc3 {[%emt 0:00:12]} Kd5 {[%emt 0:00:19]} 47. Kd3 {[%emt 0:00:01]} Kc6 {[%emt 0:00:25]} 48. a4 {[%emt 0:00:06]} Kd5 {[%emt 0:00:08]} 49. b5 {[%emt 0:00:15]} axb5 {[%emt 0:00:08]} 50. axb5 {[%emt 0:00:01]} Kc5 {[%emt 0:00:13]} 51. f5 {[%emt 0:00:09]} gxf5 {[%emt 0:00:09]} 52. g5 {[%emt 0:00:19]} Kxb5 {[%emt 0:00:06]} 53. g6 {[%emt 0:00:12]} 1-0

[Event "Hungarian Youth-ch I 2024"]
[Site "Szolnok"]
[Date "2024.04.02"]
[Round "3.19"]
[White "Golya, David"]
[Black "Cser, Matyas"]
[Result "1-0"]
[ECO "B06"]
[WhiteElo "1672"]
[BlackElo "1420"]
[Annotator "NA RC"]
[PlyCount "63"]
[EventDate "2024.03.31"]
[EventType "swiss"]
[EventCountry "HUN"]
[SourceTitle "playchess.com"]
[Source "ChessBase"]
[SourceQuality "1"]
[TimeControl "5400+30"]

1. e4 {[%emt 0:00:03]} g6 {[%emt 0:00:05]} 2. d4 {[%emt 0:00:05]} Bg7 {[%emt 0:00:05]} 3. Nf3 {[%emt 0:00:06]} d6 {[%emt 0:00:04]} 4. Nc3 {[%emt 0:00:19]} Nd7 {[%emt 0:00:22]} 5. Bc4 {[%emt 0:00:29]} e6 {[%emt 0:00:25]} 6. O-O {[%emt 0:00:29]} Ne7 {[%emt 0:00:28]} 7. Be3 {[%emt 0:00:47]} O-O {[%emt 0:00:12]} 8. Qd2 {[%emt 0:01:23]} b6 {[%emt 0:01:39]} 9. Bh6 {[%emt 0:01:42]} Bb7 {[%emt 0:00:13]} 10. d5 {[%emt 0:05:06]} e5 {[%emt 0:00:17]} 11. Bxg7 {[%emt 0:03:11]} Kxg7 {[%emt 0:01:44]} 12. h4 {[%emt 0:00:39]} h5 {[%emt 0:00:18]} 13. Ng5 {[%emt 0:01:07]} Ng8 {[%emt 0:02:18]} 14. f4 {[%emt 0:00:20]} exf4 {[%emt 0:00:52]} 15. Qxf4 {[%emt 0:01:16]} Ne5 {[%emt 0:01:08]} 16. Rf2 {[%emt 0:01:36]} Qe7 {[%emt 0:01:28]} 17. Be2 {[%emt 0:03:04]} Rad8 {[%emt 0:04:41]} 18. Raf1 {[%emt 0:00:47]} Nh6 {[%emt 0:01:27]} 19. Nb5 {[%emt 0:05:33]} a6 {[%emt 0:00:38]} 20. Nd4 {[%emt 0:00:15]} Qd7 {[%emt 0:03:59]} 21. Qf6+ {[%emt 0:06:24]} Kg8 {[%emt 0:00:46]} 22. Nde6 {[%emt 0:05:38]} fxe6 {[%emt 0:03:29]} 23. Qxf8+ {[%emt 0:00:18]} Rxf8 {[%emt 0:00:12]} 24. Rxf8+ {[%emt 0:00:07]} Kg7 {[%emt 0:00:44]} 25. Nxe6+ {[%emt 0:00:10]} Kh7 {[%emt 0:00:44]} 26. Rb8 {[%emt 0:00:11]} c6 {[%emt 0:03:09]} 27. Nf8+ {[%emt 0:00:07]} Kg7 {[%emt 0:00:26]} 28. Nxd7 {[%emt 0:00:06]} cxd5 {[%emt 0:00:19]} 29. Rxb7 {[%emt 0:00:07]} dxe4 {[%emt 0:00:28]} 30. Nxe5+ {[%emt 0:00:05]} Kh8 {[%emt 0:00:28]} 31. Nxg6+ {[%emt 0:00:05]} Kg8 {[%emt 0:00:19]} 32. Bc4+ {[%emt 0:00:03]} 1-0

[Event "Hungarian Youth-ch I 2024"]
[Site "Szolnok"]
[Date "2024.04.02"]
[Round "3.20"]
[White "Tari, Arpad"]
[Black "Nagy, Norbert"]
[Result "0-1"]
[ECO "B23"]
[WhiteElo "1491"]
[BlackElo "1629"]
[Annotator "NA RC"]
[PlyCount "66"]
[EventDate "2024.03.31"]
[EventType "swiss"]
[EventCountry "HUN"]
[SourceTitle "playchess.com"]
[Source "ChessBase"]
[SourceQuality "1"]
[TimeControl "5400+30"]

1. e4 {[%emt 0:00:53]} c5 {[%emt 0:00:05]} 2. Nc3 {[%emt 0:01:25]} e6 {[%emt 0:00:08]} 3. Bc4 {[%emt 0:00:27]} Nc6 {[%emt 0:00:17]} 4. f4 {[%emt 0:00:33]} Nge7 {[%emt 0:01:01]} 5. Nf3 {[%emt 0:00:56]} d5 {[%emt 0:00:13]} 6. exd5 {[%emt 0:00:54]} exd5 {[%emt 0:00:08]} 7. Bb5 {[%emt 0:00:10]} Ng6 {[%emt 0:00:45]} 8. d4 {[%emt 0:00:52]} a6 {[%emt 0:00:59]} 9. Bxc6+ {[%emt 0:04:02]} bxc6 {[%emt 0:00:10]} 10. O-O {[%emt 0:00:49]} Be7 {[%emt 0:00:22]} 11. Qd3 {[%emt 0:01:16]} O-O {[%emt 0:00:24]} 12. f5 {[%emt 0:00:35]} c4 {[%emt 0:00:28]} 13. Qe2 {[%emt 0:01:05]} Bxf5 {[%emt 0:00:27]} 14. Ne5 {[%emt 0:01:02]} Nxe5 15. Qxe5 {[%emt 0:02:09]} Bxc2 {[%emt 0:01:54]} 16. Bf4 {[%emt 0:01:44]} Bf6 {[%emt 0:01:08]} 17. Qe3 {[%emt 0:01:35]} Re8 {[%emt 0:00:36]} 18. Qd2 {[%emt 0:00:23]} Bd3 {[%emt 0:00:23]} 19. Rf3 {[%emt 0:01:11]} Bxd4+ {[%emt 0:00:32]} 20. Kh1 {[%emt 0:00:52]} Bxc3 {[%emt 0:00:44]} 21. Qxc3 {[%emt 0:00:42]} d4 {[%emt 0:01:12]} 22. Qc1 {[%emt 0:00:38]} Be4 {[%emt 0:01:33]} 23. Rg3 {[%emt 0:00:35]} Qd5 {[%emt 0:01:28]} 24. Bh6 {[%emt 0:01:06]} Bg6 {[%emt 0:00:44]} 25. Bd2 {[%emt 0:01:58]} Re2 {[%emt 0:01:46]} 26. Bf4 {[%emt 0:03:15]} Rae8 {[%emt 0:01:09]} 27. Qf1 {[%emt 0:02:02]} d3 {[%emt 0:01:01]} 28. Rd1 {[%emt 0:02:03]} d2 {[%emt 0:01:27]} 29. Bxd2 {[%emt 0:00:49]} Rxd2 {[%emt 0:00:26]} 30. Re1 {[%emt 0:01:11]} Rxe1 {[%emt 0:00:29]} 31. Qxe1 {[%emt 0:00:18]} Rd1 {[%emt 0:00:04]} 32. Re3 {[%emt 0:00:17]} Rxe1+ {[%emt 0:00:14]} 33. Rxe1 {[%emt 0:00:05]} f6 {[%emt 0:00:17]} 0-1